Cogmind - Beta 16.1 @@@ ROGUE MODE // 2026.03.28 @ 13:47:00 Player: Fluffalo Result: Destroyed by 9Z-LBK(R) with Subdweller Shrapnel Launcher Performance ------------- Evolutions (0) 0 Regions Visited (3) 600 Robots Destroyed (30) 150 Value Destroyed (768) 768 Prototype IDs (3) 60 Alien Tech Used (0) 0 Bonus (111) 111 TOTAL SCORE: 1689 Bonus ------- Follower Combat Kills 135 Friendly Fire -24 Cogmind --------- Core Integrity 0/250 Matter 295/300 Energy 159/160 System Corruption 0% Temperature Cool (0) Movement Rolling (110) Location -10/Subcaves Parts ------- > --- POWER (1) -------- Light Nuclear Core > --- PROPULSION (2) --- Subdweller Monowheel > --- UTILITY (2) ------ Terrain Scan Processor Makeshift Light Armor Plating > --- WEAPON (2) ------- Particle Cannon > --- INVENTORY (5) ---- Deuterium Engine Airjet Improved Sensor Array Heavy Riot Gun Medium Laser Peak State ------------ > --- POWER ------------ Light Nuclear Core > --- PROPULSION ------- Aluminum Leg Aluminum Leg > --- UTILITY ---------- Terrain Scan Processor Makeshift Light Armor Plating > --- WEAPON ----------- Particle Cannon EMP Blaster > --- INVENTORY -------- Ion Engine Deuterium Engine Airjet Improved Sensor Array Medium Laser [Rating: 16] Favorites ----------- Power Ion Engine Engine Ion Engine Power Core Light Nuclear Core Propulsion Light Treads Treads Light Treads Leg Aluminum Leg Wheel Subdweller Monowheel Hover Unit Airjet Utility Terrain Scan Processor Device Improved Sensor Array Storage Small Storage Unit Processor Terrain Scan Processor Protection Light Armor Plating Weapon EMP Blaster Energy Gun Medium Laser Energy Cannon Particle Cannon Ballistic Gun Assault Rifle Ballistic Cannon Improved Light Cannon Launcher EMP Blaster Build | -11 -10 -10 -10 ------- Run | Yrd Mat Min Sub Slots Evolved . | . . . . Power . | . . . . Propulsion . | . . . . Utility . | . . . . Weapon . | . . . . Parts Attached 26 | 6 9 8 3 Power 5 | 1 2 1 1 Engine 4 | 1 2 1 . Core 1 | . . . 1 Reactor . | . . . . Propulsion 6 | 2 . 3 1 Treads 2 | 2 . . . Leg 2 | . . 2 . Wheel 1 | . . . 1 Hover 1 | . . 1 . Flight . | . . . . Utility 5 | 1 2 1 1 Device 1 | . . 1 . Storage 1 | 1 . . . Processor 1 | . 1 . . Hackware . | . . . . Protection 2 | . 1 . 1 Artifact . | . . . . Weapon 10 | 2 5 3 . Energy Gun 3 | 1 1 1 . Energy Cannon 1 | . . 1 . Ballistic Gun 3 | 1 2 . . Ballistic Cannon 1 | . 1 . . Launcher 2 | . 1 1 . Special Weapon . | . . . . Impact Weapon . | . . . . Slashing Weapon . | . . . . Piercing Weapon . | . . . . Special Melee Weapon . | . . . . Unidentified Prototypes . | . . . . Parts Lost 7 | . 4 2 1 Power . | . . . . Propulsion 1 | . 1 . . Utility 1 | . 1 . . Weapon 5 | . 2 2 1 Highest Loss Streak 2 | . 2 2 1 To Critical Strikes . | . . . . Average Backups 5 | 2 6 5 4 Power 1 | . 1 1 1 Propulsion . | . 1 . 1 Utility 1 | . 2 1 1 Weapon 2 | . 2 2 1 Tool/Special . | . . . . Unused Backups 10 | . 4 3 3 Power 2 | . . 1 1 Propulsion 2 | . 2 . . Utility 4 | . 1 2 1 Weapon 2 | . 1 . 1 Tool/Special . | . . . . Average Slot Usage (%) 91 | . 89 92 98 Engine 13 | . 13 14 9 Treads 13 | . 24 5 . Leg 9 | . . 15 26 Device 4 | . . 8 7 Storage 8 | . 14 5 . Processor 10 | . 5 14 14 Protection 1 | . 2 . 5 Energy Gun 3 | . 6 1 . Energy Cannon 5 | . . 9 14 Ballistic Gun 5 | . 12 . . Ballistic Cannon 2 | . 1 4 . Launcher 9 | . 5 11 14 Peak Build Rating 16 | 6 10 13 16 Average Rating 9 | 4 7 11 13 On Entrance 7 | . 6 10 13 Avg Prop Armor Cover (%) . | . . . . Naked Turns . | . . . . Heaviest Build 18 | 12 18 18 17 Greatest Support 40 | 40 40 20 20 Greatest Overweight (x) . | . . . . Average Overweight (x) . | . . . . Largest Inventory Capacity 8 | 8 8 8 5 Average Capacity 6 | 7 8 6 5 Most Carried 8 | 5 8 8 5 Average Carried 5 | 2 6 5 4 Final Capacity 8 | 8 8 5 5 Final Carried 8 | 4 8 5 5 Class Distribution -------------------- 100% | Mutant Dominant Class ---------------- Mutant | -10/Materials Mutant | -10/Mines Mutant | -10/Subcaves Resources | -11 -10 -10 -10 ----------- Run | Yrd Mat Min Sub Matter Collected 890 | 260 426 156 48 Remotely . | . . . . Salvage Created 888 | . 670 173 45 Parts 60 | . 50 7 3 Haulers Intercepted . | . . . . Recyclers Shooed 1 | . 1 . . Parts Field Recycled . | . . . . Retrieved Matter . | . . . . Parts Self-Destructed 6 | . . . 6 Prevented . | . . . . Parts Restored . | . . . . Kills | -11 -10 -10 -10 ------- Run | Yrd Mat Min Sub Combat Hostiles Destroyed 24 | . 18 5 1 Guns 12 | . 12 . . Cannons 1 | . . 1 . AOE 11 | . 6 4 1 Classes Destroyed 6 | . 5 . 1 Worker 2 | . 2 . . Builder 3 | . 3 . . Watcher 1 | . 1 . . Swarmer 9 | . 8 1 . Grunt 14 | . 10 4 . Subdweller 1 | . . . 1 Best Kill Streak 6 | . 6 2 1 Combat Bots Only 4 | . 4 2 1 Max Kills in Single Turn 4 | . 4 2 1 Gunslinging . | . . . . Exploded 2 | . 2 2 1 Melee . | . . . . Uniques/NPCs Destroyed . | . . . . Combat | -11 -10 -10 -10 -------- Run | Yrd Mat Min Sub Hostile Shots Fired 165 | . 128 22 15 Missed 66 | . 45 13 8 Hits 99 | . 83 9 7 Projectile 99 | . 83 9 7 AOE 5 | . . 3 2 Critical Strikes 3 | . 2 1 . Damage Taken 1329 | . 765 339 225 Core 261 | . 107 117 37 Absorbed by Shields . | . . . . Regen/Repaired (Parts) 89 | . 89 . . Core Remaining (%) 100 | 100 . . . Volleys Fired 65 | . 43 14 8 Largest 2 | . 2 2 2 Hottest 101 | . 70 101 101 Shots Fired 113 | . 76 22 15 Gun 68 | . 66 2 . Cannon 21 | . . 13 8 Launcher 24 | . 10 7 7 Special . | . . . . Kinetic 56 | . 47 9 . Thermal 33 | . 19 6 8 Explosive . | . . . . Electromagnetic 24 | . 10 7 7 Robot Hit Streak 5 | . 5 2 2 Robot Miss Streak 5 | . 5 2 3 Penetration Max . | . . . . Secondary Targets 1 | . 1 . . Max Gunslinging Chain 1 | . 1 . . Shots Hit Robots 55 | . 40 9 6 Core Hits 43 | . 33 7 3 Critical Kills . | . . . . Critical Parts Destroyed . | . . . . Critical Strikes . | . . . . Melee Attacks . | . . . . Impact . | . . . . Slashing . | . . . . Piercing . | . . . . Sneak Attacks . | . . . . Combat Hostiles . | . . . . Follow-up Attacks . | . . . . Damage Inflicted 1533 | . 921 435 177 Guns 535 | . 523 12 . Cannons 168 | . . 128 40 Explosions 819 | . 398 284 137 Melee . | . . . . Ramming 11 | . . 11 . Kinetic 486 | . 398 88 . Thermal 496 | . 243 213 40 Explosive . | . . . . Electromagnetic 540 | . 280 123 137 Impact . | . . . . Slashing . | . . . . Piercing . | . . . . Highest Corruption . | . . . . Average Corruption . | . . . . Corruption Purged . | . . . . Corruption Blocked . | . . . . Overload Shots . | . . . . Overflow Damage 16 | . 4 12 . Projectiles 6 | . . 6 . Explosions 10 | . 4 6 . Melee . | . . . . Knockbacks . | . . . . Impact . | . . . . Kinetic . | . . . . Secondary . | . . . . Self-Inflicted Damage 76 | . 10 39 27 Shots 4 | . 1 1 2 Rammed . | . . . . Targets Rammed 3 | . . 3 . Kicked 3 | . . 3 . Crushed . | . . . . Highest Temperature 90 | . 72 90 18 Average Temperature 19 | . 18 22 8 Received Heat Transfer 300 | . 174 75 51 Siege Activations . | . . . . Martial Activations . | . . . . Shielding Activations . | . . . . Robots Disrupted . | . . . . Combat Hostiles . | . . . . Robots Corrupted . | . . . . Combat Hostiles . | . . . . Parts Fried 1 | . 1 . . Impact Corruptions . | . . . . Robots Melted . | . . . . Combat Hostiles . | . . . . Parts Melted . | . . . . Heat Transferred 855 | . 470 311 74 Parts Sabotaged . | . . . . Parts Stolen . | . . . . Parts Stripped . | . . . . Power Chain Reactions 3 | . 2 1 . Alert | -11 -10 -10 -10 ------- Run | Yrd Mat Min Sub Maximum Alert Level 1 | . 1 1 . Low Security (%) 96 | 100 95 96 . Level 1 3 | . 5 3 . Level 2 . | . . . . Level 3 . | . . . . Level 4 . | . . . . Level 5 . | . . . . High Security . | . . . . Max Security . | . . . . Peak Influence 221 | . 221 208 . Initial 3 | . . 3 . Average 44 | . 57 37 . Influence Increases 968 | . 542 405 21 Destroy 0b10 Robot/C 560 | . 360 180 20 Destroy 0b10 Robot/NC 30 | . 30 . . Destroy Leader 142 | . 92 50 . Allied During Kill 17 | . . 16 1 Successful Hack 10 | . 10 . . Disable Machine 135 | . 15 120 . Destroy Structure 44 | . 5 39 . Lose Combat Pursuer 30 | . 30 . . Influence Decreases 968 | . 532 255 181 Entered New Map 91 | . . 7 84 Time Decay 630 | . 352 208 70 Lost Part 57 | . 30 20 7 Lost Ally 40 | . . 20 20 Purge Threat 150 | . 150 . . Squads Dispatched 7 | . 6 1 . Investigation 4 | . 3 1 . Extermination . | . . . . Reinforcement 3 | . 3 . . Assault . | . . . . Garrison . | . . . . Intercept . | . . . . Searches Triggered . | . . . . Construction Impeded . | . . . . Haulers Reinforced . | . . . . Active Scanning Responses . | . . . . Cargo Convoy Interrupts . | . . . . Stealth | -11 -10 -10 -10 --------- Run | Yrd Mat Min Sub Distress Signals 3 | . 3 . . Communications Jammed . | . . . . Distress Signals . | . . . . Times Spotted 58 | . 32 11 15 Peak Tracking Total 10 | . 6 3 10 Tactical Retreats 2 | . 2 . . Traps | -11 -10 -10 -10 ------- Run | Yrd Mat Min Sub Traps Triggered 8 | . 8 . . Indirectly . | . . . . Trap Hack Attempts . | . . . . Triggered . | . . . . Disarmed . | . . . . Reprogrammed . | . . . . Reused . | . . . . Traps Extracted . | . . . . Installed . | . . . . Triggered . | . . . . Machines | -11 -10 -10 -10 ---------- Run | Yrd Mat Min Sub Machines Disabled 9 | . 1 8 . Max in Single Turn 8 | . 1 8 . Machines Repaired . | . . . . Machines Dismantled . | . . . . Machines Sabotaged . | . . . . Overloaded Fab Kills . | . . . . Hacking | -11 -10 -10 -10 --------- Run | Yrd Mat Min Sub Machines Accessed 7 | . 6 1 . Terminals 4 | . 4 . . Fabricators . | . . . . Repair Stations 1 | . 1 . . Recycling Units 1 | . 1 . . Scanalyzers . | . . . . Garrison Access . | . . . . Total Hacks 15 | . 14 1 . Successful 11 | . 10 1 . Failed 4 | . 4 . . Catastrophic . | . . . . Database Lockouts . | . . . . Manual 1 | . . 1 . Terminals 9 | . 9 . . Fabricators . | . . . . Repair Stations 3 | . 3 . . Recycling Units 2 | . 2 . . Scanalyzers . | . . . . Garrison Access . | . . . . Terminal Hacks 7 | . 6 1 . Record 3 | . 3 . . Prototype ID Bank 2 | . 2 . . Open Door 1 | . . 1 . Unreport Threat 1 | . 1 . . Fabricator Hacks . | . . . . Repair Station Hacks 2 | . 2 . . Scan Component 1 | . 1 . . Repair 1 | . 1 . . Recycling Unit Hacks 2 | . 2 . . Report Inventory 1 | . 1 . . Retrieve Components 1 | . 1 . . Scanalyzer . | . . . . Garrison Access Hacks . | . . . . Unauthorized Hacks . | . . . . Terminals . | . . . . Fabricators . | . . . . Repair Stations . | . . . . Recycling Units . | . . . . Scanalyzers . | . . . . Garrison Access . | . . . . Data Cores Recovered . | . . . . Used . | . . . . Hacking Detections 3 | . 3 . . Full Trace Events . | . . . . Feedback Events . | . . . . Feedback Blocked . | . . . . Robot Schematics Acquired . | . . . . Robots Built . | . . . . Authchips . | . . . . Time . | . . . . Total Robot Build Rating . | . . . . Part Schematics Acquired . | . . . . Parts Built . | . . . . Authchips . | . . . . Time . | . . . . Total Part Build Rating . | . . . . Part Studies Acquired . | . . . . Parts Repaired 1 | . 1 . . Time 26 | . 26 . . Parts Recycled . | . . . . Recycled Matter . | . . . . Retrieved Matter . | . . . . Retrieved Components 3 | . 3 . . Parts Scanalyzed . | . . . . Part Schematics Acquired . | . . . . Parts Damaged . | . . . . Bothacking | -11 -10 -10 -10 ------------ Run | Yrd Mat Min Sub Used RIF Installer . | . . . . Robots Hacked . | . . . . Non-combat . | . . . . Combat . | . . . . Robot Hacks Applied . | . . . . Relay Couplers Released . | . . . . Fabnet Peak Effective % . | . . . . Robots Rewired . | . . . . Allies Hacked . | . . . . Hacks Repelled . | . . . . Allies | -11 -10 -10 -10 -------- Run | Yrd Mat Min Sub Total Allies 2 | . . 2 . Largest Group 2 | . . 2 1 Highest-Rated Group 39 | . . 39 28 Highest-Rated Ally 31 | . . 31 28 Total Orders . | . . . . Ally Attacks 16 | . . 10 6 Total Damage 233 | . . 148 85 Kills 5 | . . 4 1 Allies Corrupted . | . . . . Allies Melted . | . . . . Intel | -11 -10 -10 -10 ------- Run | Yrd Mat Min Sub Active Infowar (turns) 711 | . . 628 83 Sensors 711 | . . 628 83 Robot Analysis Total . | . . . . Derelict Logs Recovered 2 | . . 2 . Drone Launches . | . . . . Drone Recoveries . | . . . . Exploration | -11 -10 -10 -10 ------------- Run | Yrd Mat Min Sub Turns Passed 2296 | 114 1000 1026 156 Spaces Moved 1386 | 76 514 691 105 Core 20 | 20 . . . Treads 792 | 56 514 222 . Legs 518 | . . 421 97 Wheels 8 | . . . 8 Hover 48 | . . 48 . Flight . | . . . . Fastest Speed 50 | 50 160 60 110 Average Speed 139 | 131 160 128 119 Slowest Speed 160 | 160 160 160 120 Overloaded Moves . | . . . . Propulsion Burnouts . | . . . . Robots Hopped . | . . . . Potential Cave-ins . | . . . . Cave-ins Triggered . | . . . . Exploration Rate (%) 45 | 5 83 82 13 Regions Visited 3 Branch Regions 2 Pre-discovered Areas . | . . . . Known Exits Taken . | . . . . Unknown Exits Taken 3 | 1 1 1 . Scrap Searched 1 | . . 1 . Spaces Dug . | . . . . Terrain Destroyed 44 | . 4 40 . Melee . | . . . . Projectile 3 | . . 3 . AOE 41 | . 4 37 . Terrain Rammed . | . . . . Walls Destroyed . | . . . . Machines Disabled . | . . . . Actions | -11 -10 -10 -10 --------- Run | Yrd Mat Min Sub Total 1640 | 91 618 809 122 Wait 86 | . 12 74 . Move 1383 | 75 513 690 105 Hop . | . . . . Pick Up 41 | 10 23 7 1 Fast Attach 4 | . 1 1 2 Attach 25 | 6 12 7 . Detach 5 | . 1 3 1 Swap 8 | . 5 2 1 Drop 20 | . 8 8 4 Fire 65 | . 43 14 8 Melee . | . . . . Ram . | . . . . Kick 3 | . . 3 . Crush . | . . . . Escape Stasis . | . . . . Rewire . | . . . . Trap . | . . . . Miscellaneous . | . . . . Route ------- -11/Scrapyard -10/Materials (discovered 4 exits: [*Mat x3] / *Min) -10/Mines (discovered 2 exits: [*Mat] / [*Sub]) -10/Subcaves History --------- Turn | Location | Event 5 | -11/Scrapyard | Discovered new exit (range 15) 115 | -11/Scrapyard | Entered Materials 303 | -10/Materials | Build established: Mutant 491 | -10/Materials | Discovered new exit (range 16) 626 | -10/Materials | Discovered new exit (range 16) 787 | -10/Materials | Repaired Lgt. Treads 929 | -10/Materials | Discovered new exit (range 8) 1065 | -10/Materials | Discovered new exit (range 6) 1115 | -10/Materials | Entered Mines 1363 | -10/Mines | Found a hidden stash of uninstalled traps 1385 | -10/Mines | Assembled infested the area 1403 | -10/Mines | Core integrity fell below 50% 1468 | -10/Mines | Learned Materials stockpile data 1496 | -10/Mines | Met a Derelict shopkeep closing up shop 1667 | -10/Mines | Learned Materials stockpile data 1980 | -10/Mines | Core integrity fell below 20% 2127 | -10/Mines | Discovered new exit (range 6) 2135 | -10/Mines | Discovered new exit (range 7) 2141 | -10/Mines | Entered Subcaves 2141 | -10/Subcaves | Accompanied by 1 ally 2146 | -10/Subcaves | Led the pair of lost Derelicts to an unsafe place 2224 | -10/Subcaves | Shifting Twisted Machinery released Mak. Light Armor Plating 2235 | -10/Subcaves | Shifting Twisted Machinery released Hvy. Riot Gun 2288 | -10/Subcaves | Ambushed by swarm of Subdwellers 2291 | -10/Subcaves | Ambushed by Subdwellers from Twisted Machinery 2291 | -10/Subcaves | Ambushed by Subdwellers from Twisted Machinery 2292 | -10/Subcaves | Ambushed by Subdwellers from Twisted Machinery 2292 | -10/Subcaves | Ambushed by Subdwellers from Twisted Machinery 2297 | -10/Subcaves | Destroyed by 9Z-LBK(R) with Subdweller Shrapnel Launcher Last Messages --------------- Machinery. QM-R57(R) angrily emerges from the Twisted Machinery. N7-T4I(R) emerges from the Twisted Machinery. EV-NHV(g): "Sorry we're late! Had another grouchy Sub to deal with. Who's the new fellow?" XH-OGV(R) emerges from the Twisted Machinery. HV Slug penetrates 46-XX2(R). HV Slug penetrates Twisted Machinery. 9Z-LBK(R) angrily emerges from the Twisted Machinery. CX-402(R) angrily emerges from the Twisted Machinery. 46-XX2(R) destroyed. EMP Blaster destroyed. Subatomizers dissect the Corrupted Sub. Monowheel. MM-OS8(g) destroyed. EV-NHV(g) destroyed. Map ----- +----------------------------------------------------+ | ????????????????????????? ##### #?# | | ??????????????????????????????# ## #### | | ???????????????????????????????# ## # | | ???????????????????????????????## # | | ????????????????????????????????#### ### | | ???????????????????????????????????# #### ###### | | ???????????????????????????????????# ## ######?? | | ???????????????????????????????????# #### #?? | | ???????????????????????????????????# ### | | ???????????????????????????????????#### ## | | ??????????????????????????????????????### | | ????????????????????????????????????????#### | | ?????????????????????????????????????#????## | | ????????????????????????????????????## #### | | ???????????????????????????????????## ## | | ???????????????????????????????????# ## | | ???????????????????????????????????# ## | | ???????????????????????????????????# | | ?????????????????###????######??##### | | ?????????????????# ##?### ## ### ## ### | | ?????????????????#]%###; # ?# #### | | ?????????###h&R% #?# ### | | # ## =*R % %* ??# | | RRRR! % = ##### ???#### | | ???????## R"[RR& ###?????????# | | ????????# # # ## @ ; # ##???????## | | ????????# ?### "####; ;# "#????#### | | ????????#?????# #??### ; "#??### | | ??????????????# ##???? ;;# *" #### ! | | ??????????????# ##??? #### " " #### | | ??????????????# #??# ##??# " """" ##??? | | ??????????????# #??## #??# # ########???? | | ?????????????? ???## ######??????????? | | ?????????????? ????# #???????????????? | | ????????????? ????# ### ???????????????? | | ????????????? ## ????#####??#####???????????????? | | ???????????? ##??#???????????????????????????????? | | ?????????????????????????????????????????????????? | | ?????????????????????????????????????????????????? | | ?????????????????????????????????????????????????? | | ?????????????????????????????????????????????????? | | ?????????????????????????????????????????????????? | | ?????????????????????????????????????????????????? | | ?????????????????????????????????????????????????? | | ?????????????????????????????????????????????????? | | ?????????????????????????????????????????????????? | | ?????????????????????????????????????????????????? | | ?????????????????????????????????????????????????? | | ?????????????????????????????????????????????????? | | ?????????????????????????????????????????????????? | +----------------------------------------------------+ Best States ------------- Heat Dissipation 25 Energy Generation 14 Energy Capacity 250 Matter Stores 300 Matter Capacity 300 Sight Range 16 Robot Scan Range 15 Terrain Scan Density 85 Armor Coverage 150 Evasion (%) 55 Recoil Reduction 2 Item Schematics ----------------- None Robot Schematics ------------------ None Fabricated ------------ Nothing Repaired ---------- Lgt. Treads | 36% | -10/Materials Studied --------- None Alien Tech Used ----------------- None Achievements -------------- Everything Is Under Control For Emergencies Only Challenges ------------ None Game ------ Seed LauncherDiametricMachine Manual? 0 Play Time 00:42:32 Cumulative 2.9 hours Start 2026.03.28 @ 13:04:35 End 2026.03.28 @ 13:47:00 Sessions 1 Manual Loads 0 Difficulty Rogue Special Mode None Game No. 4 Rogue 4 Adventurer 0 Explorer 0 Win Type - Total 0 Types 0/0/0/0/0/0/0/0/0/0 Lore% 2 Gallery% 5 Achievement% 5 Wizard Run 0 Options --------- Layout 1 ASCII 0 Keyboard 0 Movement Mouse Keybinds 0 Fullscreen 1 Font 32/SmallcapsGlow Map View 50x35 Zoom Use 0% Tactical HUD 0 Map Filters NONE Filters NONE Steam 1 RUN: 7e382f29-5a2a-41a6-8a84-fb5d1ee5629f